[Event "Asian Nation Cup Women 2018"]
[Site "Hamedan"]
[Date "2018.08.03"]
[Round "7"]
[White "Padmini, Rout"]
[Black "Alinasab, Mobina"]
[Result "1/2-1/2"]
[ECO "C01"]
[WhiteElo "2338"]
[BlackElo "2281"]
[Annotator "NA"]
[PlyCount "24"]
[EventDate "2018.07.27"]
[EventType "swiss"]
[EventCountry "IRI"]
[SourceTitle "playchess.com"]
[Source "ChessBase"]
[SourceQuality "1"]
[WhiteTeam "India"]
[BlackTeam "Iran"]
[WhiteTeamCountry "IND"]
[BlackTeamCountry "IRI"]
[TimeControl "40/5400+30:1800+30"]

1. e4 {[%emt 0:00:00]} e6 {[%emt 0:00:00]} 2. d4 {[%emt 0:00:00]} d5 {[%emt 0:00:00]} 3. exd5 {[%emt 0:00:00]} exd5 {[%emt 0:00:00]} 4. Nf3 {[%emt 0:00:00]} Nc6 {[%emt 0:00:00]} 5. Be2 {[%emt 0:00:09]} Bd6 {[%emt 0:00:18]} 6. Nc3 {[%emt 0:00:22]} Nf6 {[%emt 0:01:54]} 7. O-O {[%emt 0:01:05]} O-O {[%emt 0:00:41]} 8. Nb5 {[%emt 0:02:54]} Ne4 {[%emt 0:01:31]} 9. c4 {[%emt 0:01:50]} dxc4 {[%emt 0:01:44]} 10. Bxc4 {[%emt 0:00:07]} a6 {[%emt 0:01:27]} 11. Nc3 {[%emt 0:00:49]} Nxc3 {[%emt 0:04:04]} 12. bxc3 {[%emt 0:00:03]} Bg4 {[%emt 0:01:13]} 1/2-1/2

[Event "Asian Nation Cup Women 2018"]
[Site "Hamedan"]
[Date "2018.08.03"]
[Round "7"]
[White "Hejazipour, Mitra"]
[Black "Karavade, Eesha"]
[Result "1/2-1/2"]
[ECO "E06"]
[WhiteElo "2276"]
[BlackElo "2378"]
[Annotator "NA"]
[PlyCount "22"]
[EventDate "2018.07.27"]
[EventType "swiss"]
[EventCountry "IRI"]
[SourceTitle "playchess.com"]
[Source "ChessBase"]
[SourceQuality "1"]
[WhiteTeam "Iran"]
[BlackTeam "India"]
[WhiteTeamCountry "IRI"]
[BlackTeamCountry "IND"]
[TimeControl "40/5400+30:1800+30"]

1. d4 {[%emt 0:00:00]} Nf6 {[%emt 0:00:00]} 2. c4 {[%emt 0:00:00]} e6 {[%emt 0:00:00]} 3. Nf3 {[%emt 0:00:00]} d5 {[%emt 0:00:00]} 4. g3 {[%emt 0:00:59]} Be7 {[%emt 0:00:32]} 5. Bg2 {[%emt 0:00:34]} O-O {[%emt 0:00:42]} 6. O-O {[%emt 0:00:16]} dxc4 {[%emt 0:00:38]} 7. Qc2 {[%emt 0:01:52]} a6 {[%emt 0:02:28]} 8. a4 {[%emt 0:01:04]} Bd7 {[%emt 0:00:26]} 9. Qxc4 {[%emt 0:01:41]} Bc6 {[%emt 0:00:06]} 10. Bg5 {[%emt 0:01:32]} h6 {[%emt 0:01:03]} 11. Bxf6 {[%emt 0:01:11]} Bxf6 {[%emt 0:00:34]} 1/2-1/2

[Event "Asian Nation Cup Women 2018"]
[Site "Hamedan"]
[Date "2018.08.03"]
[Round "7"]
[White "Nadirjanova, Nodira"]
[Black "Guo, Qi"]
[Result "1/2-1/2"]
[ECO "A05"]
[WhiteElo "2180"]
[BlackElo "2361"]
[Annotator "NA"]
[PlyCount "23"]
[EventDate "2018.07.27"]
[EventType "swiss"]
[EventCountry "IRI"]
[SourceTitle "playchess.com"]
[Source "ChessBase"]
[SourceQuality "1"]
[WhiteTeam "Uzbekistan"]
[BlackTeam "China"]
[WhiteTeamCountry "UZB"]
[BlackTeamCountry "CHN"]
[TimeControl "40/5400+30:1800+30"]

1. Nf3 {[%emt 0:00:00]} Nf6 {[%emt 0:00:00]} 2. c4 c5 {[%emt 0:00:32]} 3. e3 {[%emt 0:01:09]} g6 {[%emt 0:00:27]} 4. Nc3 {[%emt 0:01:04]} Bg7 {[%emt 0:00:32]} 5. Be2 {[%emt 0:00:32]} O-O {[%emt 0:00:25]} 6. O-O {[%emt 0:00:20]} d5 {[%emt 0:00:31]} 7. d4 {[%emt 0:00:31]} cxd4 {[%emt 0:02:15]} 8. Nxd4 {[%emt 0:00:31]} Nc6 {[%emt 0:05:25]} 9. cxd5 {[%emt 0:05:20]} Nxd5 {[%emt 0:00:04]} 10. Nxc6 {[%emt 0:00:17]} bxc6 {[%emt 0:00:04]} 11. Nxd5 {[%emt 0:00:10]} cxd5 {[%emt 0:00:19]} 12. Bf3 1/2-1/2